bitfinex/quotes_SOLUSD_20250823
["timestamp","ask_amount","ask_price","bid_price","bid_amount"]
[1755925687012,29.76654942,205.14,205.13,0.03]
[1755925687513,13.59559401,205.14,205.13,0.03]
[1755925687734,41.34,205.16,205.13,0.03]
[1755925688018,29.76654942,205.15,205.13,0.03]
[1755925688226,41.34,205.16,205.13,0.03]
[1755925689140,41.3,205.15,205.14,0.69]
[1755925689418,41.3,205.15,205.14,16.86095541]
[1755925691393,16.17095541,205.25,205.14,42.86095541]
[1755925691604,0.71,205.28,205.14,42.86095541]
[1755925691605,13.59559401,205.23,205.19,16.17095541]
[1755925692010,13.59559401,205.23,205.19,16.86095541]
[1755925693831,29.76654942,205.23,205.15,0.69]
[1755925694140,13.59559401,205.19,205.14,16.17095541]
[1755925694338,41.16,205.18,205.14,16.17095541]
[1755925695324,41.16,205.18,205.14,16.86095541]
[1755925695534,0.06,205.23,205.17,16.17095541]
[1755925695715,41.12,205.22,205.21,16.17095541]
[1755925695896,41.12,205.22,205.2,16.17095541]
[1755925696511,41.12,205.22,205.19,16.17095541]
[1755925696903,41.12,205.22,205.18,0.69]
[1755925696904,13.59559401,205.21,205.17,16.17095541]
[1755925697803,13.59559401,205.21,205.16,16.17095541]
[1755925698016,16.17095541,205.19,205.13,0.03]
[1755925698209,41.12,205.18,205.13,0.03]
[1755925698531,41.12,205.18,205.15,16.17095541]
[1755925698701,41.12,205.18,205.15,16.86095541]
[1755925698903,13.59559401,205.21,205.15,16.86095541]
[1755925699097,41.1,205.2,205.16,16.17095541]
[1755925699535,41.1,205.2,205.17,16.86095541]
[1755925699698,41.1,205.2,205.17,0.69]
[1755925699897,0.06,205.23,205.19,16.17095541]
[1755925700121,0.06,205.23,205.22,16.17095541]
[1755925700324,41.16,205.23,205.22,16.17095541]
[1755925700522,41.16,205.23,205.22,16.86095541]
[1755925700925,0.06,205.29,205.25,26.0]
[1755925701237,0.1,205.41,205.31,26.0]
[1755925701419,41.4,205.41,205.4,16.17095541]
[1755925701811,0.1,205.41,205.4,42.86095541]
[1755925702008,35.12,205.57,205.44,0.28432314]
[1755925702204,41.42,205.56,205.45,0.69]
[1755925702505,16.17095541,205.51,205.42,0.69]
[1755925702705,41.44,205.5,205.42,0.69]
[1755925702929,35.12,205.57,205.49,16.17095541]
[1755925703139,41.52,205.56,205.54,16.17095541]
[1755925703326,41.52,205.56,205.53,16.17095541]
[1755925703510,13.59559401,205.55,205.51,16.17095541]
[1755925703830,13.59559401,205.53,205.5,16.17095541]
[1755925704036,16.17095541,205.52,205.46,16.17095541]
[1755925704208,29.76654942,205.5,205.44,16.17095541]
[1755925704407,37.62368294,205.5,205.44,24.02808893]
[1755925705948,24.02808893,205.46,205.4,26.0]
[1755925706114,24.02808893,205.44,205.38,0.69]
[1755925706314,41.44,205.43,205.39,24.02808893]
[1755925706954,0.71,205.52,205.42,24.02808893]
[1755925707125,37.62368294,205.49,205.43,24.02808893]
[1755925707438,24.02808893,205.48,205.42,24.02808893]
[1755925707622,65.48808893,205.51,205.44,24.02808893]
[1755925707935,37.62368294,205.5,205.43,24.02808893]
[1755925708117,41.42,205.49,205.44,24.02808893]
[1755925708620,35.82,205.57,205.48,24.02808893]
[1755925708837,41.44,205.56,205.52,24.02808893]
[1755925709014,41.44,205.56,205.5,24.02808893]
[1755925709213,1.06,205.58,205.55,24.02808893]
[1755925709522,41.52,205.57,205.5,0.67]
[1755925709836,13.59559401,205.56,205.5,24.02808893]
[1755925710132,13.59559401,205.52,205.46,24.69808893]
[1755925710333,41.54,205.51,205.46,0.67]
[1755925710542,41.54,205.51,205.46,24.69808893]
[1755925710838,37.62368294,205.5,205.41,0.67]
[1755925711028,24.02808893,205.49,205.42,24.02808893]
[1755925711668,37.62368294,205.48,205.41,24.69808893]
[1755925712025,37.62368294,205.48,205.41,24.02808893]
[1755925712223,38.1618992,205.56,205.47,24.02808893]
[1755925712224,13.59559401,205.55,205.47,24.02808893]
[1755925712446,41.58,205.54,205.5,24.02808893]
[1755925713043,41.58,205.53,205.52,24.02808893]
[1755925713214,41.6,205.53,205.5,0.67]
[1755925713416,41.6,205.53,205.5,24.02808893]
[1755925713643,41.6,205.53,205.51,24.02808893]
[1755925713850,41.6,205.53,205.5,24.02808893]
[1755925714046,0.06,205.53,205.52,0.67]
[1755925714342,41.62,205.53,205.52,24.02808893]
[1755925714653,41.62,205.53,205.49,0.67]
[1755925714846,41.62,205.53,205.52,24.02808893]
[1755925715019,13.59559401,205.52,205.45,0.67]
[1755925715226,24.02808893,205.5,205.43,24.02808893]
[1755925715431,13.59559401,205.5,205.44,24.02808893]
[1755925715756,13.59559401,205.48,205.42,24.02808893]
[1755925716061,41.56,205.47,205.41,24.02808893]
[1755925716553,41.56,205.47,205.39,0.67]
[1755925716857,41.56,205.47,205.41,24.02808893]
[1755925717036,41.56,205.47,205.42,24.02808893]
[1755925718057,13.59559401,205.48,205.42,24.02808893]
[1755925718256,0.06,205.53,205.43,0.67]
[1755925718554,41.78,205.52,205.5,24.02808893]
[1755925718756,41.78,205.52,205.41,26.0]
[1755925718757,41.78,205.52,205.51,24.02808893]
[1755925718940,0.06,205.53,205.51,24.02808893]
[1755925719143,41.76,205.52,205.47,0.67]
[1755925719462,0.06,205.53,205.48,0.67]
[1755925719635,41.82,205.53,205.52,24.02808893]
[1755925719834,41.82,205.53,205.52,24.69808893]
[1755925720038,0.06,205.53,205.52,24.69808893]
[1755925723557,0.06,205.53,205.52,0.67]
[1755925723735,0.06,205.53,205.52,24.69808893]
[1755925725140,14.29559401,205.68,205.52,50.69808893]
[1755925725340,14.29559401,205.68,205.57,24.02808893]
[1755925725341,41.58,205.61,205.57,24.02808893]
[1755925725836,41.56,205.62,205.57,24.69808893]
[1755925726056,41.56,205.63,205.57,24.69808893]
[1755925727067,13.59559401,205.57,205.48,0.67]
[1755925727239,24.02808893,205.55,205.48,0.67]
[1755925727435,24.02808893,205.5,205.44,24.69808893]
[1755925727665,41.54,205.49,205.45,24.02808893]
[1755925727848,0.7,205.54,205.48,24.02808893]
[1755925728040,65.62808893,205.53,205.47,24.02808893]
[1755925728864,41.6,205.53,205.47,24.02808893]
[1755925729061,65.62808893,205.53,205.46,24.69808893]
[1755925729265,41.6,205.53,205.45,24.02808893]
[1755925729447,65.62808893,205.53,205.48,0.03]
[1755925730054,66.32808893,205.53,205.48,0.03]
[1755925730351,1.06,205.58,205.52,24.02808893]
[1755925730556,41.58,205.57,205.54,24.02808893]
[1755925731072,41.6,205.57,205.55,24.02808893]
[1755925732162,42.66,205.58,205.55,24.02808893]
[1755925732365,42.66,205.58,205.53,24.02808893]
[1755925732544,43.36,205.58,205.5,0.67]
[1755925732745,43.36,205.58,205.53,24.02808893]
[1755925732946,43.36,205.58,205.54,24.02808893]
[1755925733741,43.36,205.58,205.5,0.67]
[1755925734070,42.66,205.58,205.54,24.02808893]
[1755925736165,13.59559401,205.54,205.48,0.03]
[1755925736368,24.02808893,205.52,205.48,0.03]
[1755925736555,13.59559401,205.52,205.48,0.03]
[1755925736758,42.18,205.51,205.48,0.03]
[1755925736973,66.20808893,205.51,205.48,0.03]
[1755925737171,37.62368294,205.49,205.48,0.03]
[1755925737578,38.32368294,205.49,205.48,0.03]
[1755925738072,41.46,205.49,205.48,0.03]
[1755925738457,42.16,205.49,205.48,0.03]
[1755925738653,24.02808893,205.52,205.48,0.03]
[1755925738874,41.44,205.51,205.48,0.03]
[1755925739785,41.44,205.51,205.48,24.05808893]
[1755925740374,1.06,205.58,205.49,0.67]
[1755925740573,41.42,205.57,205.51,24.02808893]
[1755925741068,25.78808893,205.58,205.49,0.67]
[1755925741069,41.42,205.56,205.52,24.02808893]
[1755925741274,41.4,205.55,205.53,24.02808893]
[1755925741484,41.4,205.55,205.52,0.67]
[1755925741776,41.4,205.55,205.51,24.02808893]
[1755925742477,41.4,205.55,205.48,0.7]
[1755925742684,41.4,205.55,205.51,24.02808893]
[1755925742982,41.4,205.55,205.52,24.02808893]
[1755925743284,1.06,205.58,205.54,24.02808893]
[1755925743455,1.06,205.58,205.5,0.67]
[1755925743652,41.38,205.57,205.53,24.02808893]
[1755925744086,41.38,205.57,205.48,0.03]
[1755925744253,41.38,205.57,205.53,24.02808893]
[1755925745281,1.06,205.58,205.54,24.02808893]
[1755925745458,1.06,205.58,205.57,24.02808893]
[1755925746363,1.06,205.58,205.57,27.14828687]
[1755925746558,1.06,205.58,205.57,27.81828687]
[1755925748764,1.06,205.58,205.51,0.03]
[1755925749074,1.06,205.58,205.57,24.02808893]
[1755925749680,1.06,205.58,205.57,24.69808893]
[1755925750452,1.06,205.58,205.57,27.81529202]
[1755925753091,1.06,205.58,205.57,27.81162382]
[1755925753873,1.06,205.58,205.57,3.14802406]
[1755925754074,1.06,205.58,205.57,27.84606371]
[1755925754310,1.06,205.58,205.57,24.69808893]
[1755925755992,1.06,205.58,205.57,0.67]
[1755925756192,1.06,205.58,205.57,24.69808893]
[1755925756408,1.06,205.58,205.57,16.77318585]
[1755925757303,1.06,205.58,205.54,26.0]
[1755925757487,1.06,205.58,205.57,0.67]
[1755925759903,1.06,205.58,205.57,42.77318585]
[1755925760205,1.06,205.58,205.57,16.77318585]
[1755925764405,1.06,205.58,205.57,17.05750899]
[1755925765274,1.06,205.58,205.57,43.05750899]
[1755925765591,1.06,205.58,205.57,17.05750899]
[1755925766491,1.06,205.58,205.57,17.00750899]
[1755925766799,1.06,205.58,205.57,42.72318585]
[1755925767011,1.06,205.58,205.57,16.72318585]
[1755925768705,1.06,205.58,205.57,16.10318585]
[1755925769608,1.06,205.58,205.57,16.82318585]
[1755925770304,1.06,205.58,205.57,42.10318585]
[1755925770478,1.06,205.58,205.57,16.10318585]
[1755925771905,1.06,205.58,205.57,16.82318585]
[1755925773190,1.06,205.58,205.57,16.10318585]
[1755925775988,1.76,205.58,205.57,16.10318585]
[1755925776586,1.06,205.58,205.57,16.10318585]
[1755925777308,1.06,205.58,205.57,16.82318585]
[1755925777511,1.06,205.58,205.57,16.10318585]
[1755925777885,1.06,205.58,205.54,0.72]
[1755925778089,1.06,205.58,205.57,16.10318585]
[1755925779582,1.06,205.58,205.57,16.82318585]
[1755925780306,1.06,205.58,205.57,10.78355257]
[1755925781694,1.06,205.58,205.57,14.59991715]
[1755925781889,1.06,205.58,205.57,10.78355257]
[1755925782192,1.06,205.58,205.57,14.06791114]
[1755925782389,1.06,205.58,205.57,14.06832947]
[1755925783108,1.06,205.58,205.57,14.06825573]
[1755925783896,1.06,205.58,205.57,13.34825573]
[1755925784699,1.06,205.58,205.57,3.28470316]
[1755925784890,1.06,205.58,205.57,10.06355257]
[1755925785086,1.06,205.58,205.57,13.39156686]
[1755925785292,1.06,205.58,205.57,3.32819438]
[1755925785508,1.06,205.58,205.57,10.06355257]
[1755925785806,1.06,205.58,205.57,36.06355257]
[1755925785990,1.06,205.58,205.57,10.06355257]
[1755925786189,1.76,205.58,205.57,10.06355257]
[1755925786392,1.06,205.58,205.57,10.06355257]
[1755925786620,1.06,205.58,205.57,13.39236349]
[1755925787293,1.76,205.58,205.57,3.32881092]
[1755925787617,1.76,205.58,205.57,10.06355257]
[1755925788512,1.06,205.58,205.57,10.06355257]
[1755925789404,1.06,205.58,205.57,13.31134686]
[1755925789606,1.76,205.58,205.57,13.31134686]
[1755925790424,1.06,205.58,205.57,13.31134686]
[1755925791434,1.06,205.58,205.57,13.31372032]
[1755925791996,1.06,205.58,205.57,13.31371308]
[1755925792902,1.06,205.58,205.57,14.03371308]
[1755925793328,1.06,205.58,205.57,13.31371308]
[1755925794816,1.06,205.58,205.57,3.25016051]
[1755925795001,1.06,205.58,205.57,13.31371308]
[1755925795202,1.06,205.58,205.57,13.34371308]
[1755925796433,1.06,205.58,205.57,39.34371308]
[1755925796810,1.06,205.58,205.57,40.06371308]
[1755925797908,1.06,205.58,205.57,39.34371308]
[1755925800436,1.06,205.58,205.57,36.09355257]
[1755925800624,1.06,205.58,205.57,39.34558311]
[1755925801135,1.74,205.58,205.57,3.28203054]
[1755925801433,1.74,205.58,205.57,13.34558311]
[1755925802235,1.06,205.58,205.57,10.09355257]
[1755925802446,1.74,205.58,205.57,10.09355257]
[1755925802636,1.06,205.58,205.57,12.04101957]
[1755925803243,1.06,205.58,205.57,15.44263719]
[1755925803442,1.06,205.58,205.57,6.09908462]
[1755925803614,1.06,205.58,205.57,16.16263719]
[1755925804145,1.06,205.58,205.57,12.76101957]
[1755925804322,1.06,205.58,205.57,6.09740635]
[1755925804529,1.06,205.58,205.57,15.44095892]
[1755925806350,1.06,205.58,205.57,5.37740635]
[1755925806521,1.06,205.58,205.57,15.44095892]
[1755925808628,13.59559401,205.68,205.57,15.44095892]
[1755925808629,40.74,205.69,205.62,10.0]
[1755925808829,10.06355257,205.67,205.62,10.0]
[1755925809839,10.06355257,205.65,205.62,10.0]
[1755925810218,10.06355257,205.63,205.57,10.03]
[1755925810451,10.06355257,205.61,205.57,10.03]
[1755925810747,10.66355257,205.6,205.57,10.03]
[1755925810953,54.31559401,205.65,205.57,10.03]
[1755925810954,10.06355257,205.58,205.57,0.03]
[1755925811119,0.6,205.59,205.58,10.0]
[1755925815156,0.6,205.59,205.57,0.03]
[1755925815335,0.6,205.58,205.57,0.03]
[1755925816360,0.14216157,205.65,205.57,0.03]
[1755925816524,0.6,205.61,205.58,20.06355257]
[1755925817023,0.6,205.6,205.58,10.0]
[1755925817354,0.6,205.59,205.57,0.03]
[1755925818424,10.06355257,205.61,205.57,0.03]
[1755925818726,0.6,205.59,205.57,0.03]
[1755925818927,0.6,205.59,205.58,10.0]
[1755925819329,0.6,205.59,205.57,0.03]
[1755925819549,0.6,205.59,205.58,10.0]
[1755925819851,0.6,205.59,205.57,0.03]
[1755925820347,10.66355257,205.61,205.57,0.03]
[1755925820759,10.06355257,205.61,205.57,0.03]
[1755925820933,0.6,205.6,205.58,10.0]
[1755925821460,40.7,205.62,205.58,10.0]
[1755925821653,0.6,205.66,205.61,10.06355257]
[1755925821952,0.6,205.65,205.61,10.06355257]
[1755925822147,13.59559401,205.66,205.61,10.06355257]
[1755925822348,0.06,205.67,205.63,10.06355257]
[1755925822559,0.66,205.67,205.63,10.06355257]
[1755925822724,0.66,205.67,205.64,10.0]
[1755925823331,0.06,205.67,205.66,10.0]
[1755925823550,0.06,205.67,205.66,20.06355257]
[1755925824351,0.06,205.67,205.64,10.0]
[1755925825742,0.6,205.66,205.62,10.0]
[1755925825947,0.6,205.65,205.62,10.0]
[1755925826451,0.06,205.67,205.66,10.0]
[1755925826640,0.06,205.67,205.66,20.06355257]
[1755925826834,0.06,205.67,205.66,20.78355257]
[1755925828333,0.66,205.81,205.72,10.0]
[1755925828546,64.99914658,205.79,205.73,10.06355257]
[1755925829047,24.31914658,205.79,205.73,10.06355257]
[1755925829266,64.99914658,205.79,205.73,10.06355257]
[1755925829434,64.33914658,205.79,205.72,10.0]
[1755925829638,64.33914658,205.79,205.68,10.0]
[1755925829639,13.59559401,205.72,205.68,10.0]
[1755925829833,10.06355257,205.7,205.68,10.0]
[1755925830152,14.25559401,205.72,205.66,10.0]
[1755925830363,10.06355257,205.7,205.66,10.0]
[1755925830539,10.06355257,205.71,205.68,10.0]
[1755925830934,10.06355257,205.71,205.66,10.0]
[1755925831161,10.72355257,205.7,205.66,10.0]
[1755925831463,10.06355257,205.69,205.66,10.0]
[1755925831776,0.28432314,205.71,205.61,10.0]
[1755925831777,23.65914658,205.67,205.61,10.0]
[1755925831953,10.06355257,205.64,205.59,10.0]
[1755925832258,10.06355257,205.64,205.58,0.72]
[1755925832571,40.66,205.67,205.63,10.0]
[1755925832759,0.66,205.73,205.67,10.0]
[1755925832944,13.59559401,205.72,205.67,20.06355257]
[1755925833145,14.25559401,205.72,205.67,20.06355257]
[1755925833668,14.25559401,205.72,205.67,10.0]
[1755925833967,14.25559401,205.72,205.67,20.06355257]
[1755925834959,54.25559401,205.72,205.67,20.06355257]
[1755925835164,54.25559401,205.72,205.67,20.75355257]
[1755925836868,54.25559401,205.72,205.67,20.06355257]
[1755925837053,13.59559401,205.75,205.71,10.06355257]
[1755925837253,40.64,205.76,205.72,10.0]
[1755925837566,40.64,205.76,205.72,10.69]
[1755925837950,0.06,205.77,205.74,10.06355257]
[1755925838151,0.06,205.77,205.76,10.06355257]
[1755925838359,0.06,205.77,205.75,10.06355257]
[1755925838554,0.06,205.77,205.76,10.06355257]
[1755925838856,0.06,205.77,205.76,20.75355257]
[1755925839304,0.06,205.77,205.76,10.0]
[1755925839445,0.06,205.77,205.75,10.063552]
[1755925839841,0.06,205.77,205.76,10.0]
[1755925840041,0.06,205.77,205.74,0.69]
[1755925840263,0.06,205.77,205.74,20.75355257]
[1755925840466,0.06,205.77,205.74,10.75355257]
[1755925840964,0.06,205.77,205.76,10.0]
[1755925841272,0.06,205.77,205.76,20.06355257]
[1755925841457,0.06,205.77,205.76,20.75355257]
[1755925841780,13.65559401,205.86,205.76,20.75355257]
[1755925841951,40.62,205.85,205.81,10.06355257]
[1755925842157,40.62,205.85,205.8,10.06355257]
[1755925842673,0.06,205.86,205.83,10.06355257]
[1755925842874,0.06,205.86,205.85,10.06355257]
[1755925843668,0.06,205.86,205.85,10.75355257]
[1755925844352,0.06,205.86,205.85,20.75355257]
[1755925844751,0.06,205.86,205.85,31.50710457]
[1755925845781,0.06,205.86,205.85,10.69]
[1755925845952,0.06,205.86,205.85,10.0]
[1755925846353,0.06,205.86,205.85,20.75355257]
[1755925846580,0.24888,205.93,205.88,10.0]
[1755925846882,0.24888,205.93,205.84,26.0]
[1755925846883,0.24888,205.93,205.91,10.06355257]
[1755925847075,0.24888,205.93,205.91,10.75355257]
[1755925847761,0.24888,205.93,205.91,25.33258357]
[1755925850377,0.24888,205.93,205.91,31.31810209]
[1755925853583,0.24888,205.93,205.91,44.9136961]
[1755925853768,0.06,205.97,205.96,10.0]
[1755925853969,0.06,205.97,205.96,66.60907109]
[1755925854173,0.06,205.97,205.96,67.29907109]
[1755925854374,0.06,205.97,205.96,72.93849509]
[1755925854575,0.06,205.97,205.96,73.22281823]
[1755925854768,0.06,205.97,205.96,56.869424]
[1755925854967,0.06,205.97,205.96,72.91849509]
[1755925855573,0.06,205.97,205.96,4.56994369]
[1755925855877,0.06,205.97,205.96,16.04907109]
[1755925856271,0.06,205.97,205.96,26.0]
[1755925856464,0.06,205.97,205.96,42.04907109]
[1755925856654,0.06,205.97,205.96,56.62597609]
[1755925857278,0.06,205.97,205.96,42.04907109]
[1755925858255,0.06,205.97,205.96,26.0]
[1755925858456,0.06,205.97,205.96,42.04907109]
[1755925858888,0.06,205.97,205.95,14.578322]
[1755925859063,0.06,205.97,205.96,16.04907109]
[1755925860187,0.06,205.97,205.96,57.25907109]
[1755925860899,5.639424,206.0,205.99,26.0]
[1755925861193,5.639424,206.0,205.99,82.56907109]
[1755925861393,5.639424,206.0,205.99,83.25907109]
[1755925861573,5.639424,206.0,205.99,42.73907109]
[1755925861774,5.639424,206.0,205.99,83.25907109]
[1755925862367,5.639424,206.0,205.99,57.25907109]
[1755925862604,5.639424,206.0,205.99,62.89849509]
[1755925862789,5.639424,206.0,205.99,57.25907109]
[1755925862990,0.18796213,206.08,206.02,26.0]
[1755925863297,0.18796213,206.08,206.03,66.52]
[1755925863461,0.18796213,206.08,206.06,26.0]
[1755925863665,0.18796213,206.08,206.07,56.56907109]
[1755925864082,0.18796213,206.08,206.07,56.54907109]
[1755925864665,0.18796213,206.08,206.05,26.0]
[1755925864866,0.18796213,206.08,206.07,16.04907109]
[1755925865092,0.18796213,206.08,206.06,41.19]
[1755925865298,0.18796213,206.08,206.07,16.04907109]
[1755925865698,0.18796213,206.08,206.07,56.54907109]
[1755925865888,0.89796213,206.11,206.07,56.54907109]
[1755925866094,0.71,206.1,206.08,16.04907109]
[1755925866295,0.18796213,206.11,206.09,16.04907109]
[1755925867016,0.18796213,206.11,206.1,16.04907109]
[1755925868181,0.18796213,206.11,206.07,41.19]
[1755925868383,0.18796213,206.11,206.1,16.04907109]
[1755925869410,0.18796213,206.11,206.1,57.36123266]
[1755925869598,0.18796213,206.11,206.1,58.47067709]
[1755925869914,0.18796213,206.11,206.1,57.21907109]
[1755925870117,0.18796213,206.11,206.1,59.16077209]
[1755925870288,0.18796213,206.11,206.1,53.12240767]
[1755925870482,0.18796213,206.11,206.1,77.49823284]
[1755925870882,0.06,206.13,206.12,26.28432314]
[1755925871085,0.06,206.13,206.12,36.29502981]
[1755925871288,0.06,206.13,206.12,36.70070667]
[1755925871597,0.06,206.13,206.12,36.01070667]
[1755925871823,0.06,206.13,206.12,76.49070667]
[1755925872112,0.06,206.13,206.12,77.95018408]
[1755925872410,0.06,206.13,206.12,83.18522788]
[1755925872612,0.06,206.13,206.12,83.46955102]
[1755925873788,0.06,206.13,206.12,43.47470529]
[1755925873989,0.06,206.13,206.12,82.47522788]
[1755925874191,0.06,206.13,206.12,42.01522788]
[1755925874409,0.06,206.13,206.12,83.44955102]
[1755925875399,0.06,206.13,206.12,83.93470529]
[1755925875915,0.06,206.13,206.12,43.47470529]
[1755925876093,0.06,206.13,206.12,67.91947741]
[1755925876282,0.06,206.13,206.12,83.44955102]
[1755925876895,0.06,206.13,206.12,101.94718946]
[1755925877103,0.24862,206.15,206.12,101.94718946]
[1755925877303,16.01522788,206.34,206.17,26.0]
[1755925877515,16.72522788,206.33,206.18,41.13]
[1755925877821,0.71,206.32,206.26,16.01522788]
[1755925878014,0.71,206.32,206.29,16.01522788]
[1755925878211,0.71,206.32,206.25,40.44]
[1755925878422,0.71,206.32,206.28,16.01522788]
[1755925879222,0.71,206.32,206.26,40.44]
[1755925879223,0.71,206.31,206.29,16.01522788]
[1755925879388,16.01522788,206.35,206.29,16.01522788]
[1755925879717,0.71,206.3,206.29,16.01522788]
[1755925880217,0.71,206.3,206.26,40.44]
[1755925880412,0.71,206.33,206.29,16.01522788]
[1755925880585,10.0,206.45,206.29,16.01522788]
[1755925880586,0.71,206.32,206.31,16.01522788]
[1755925881502,0.71,206.35,206.31,16.01522788]
[1755925882107,0.71,206.34,206.32,16.01522788]
[1755925882308,0.71,206.33,206.31,16.01522788]
[1755925883129,0.71,206.33,206.32,16.01522788]
[1755925883311,0.71,206.37,206.29,41.13]
[1755925883501,0.71,206.37,206.34,16.01522788]
[1755925884028,0.71,206.36,206.33,16.01522788]
[1755925884197,16.01522788,206.39,206.33,16.01522788]
[1755925884198,0.71,206.35,206.33,16.01522788]
[1755925884522,0.71,206.38,206.33,16.01522788]
[1755925884691,0.71,206.38,206.32,40.42]
[1755925884894,0.71,206.38,206.32,56.43522788]
[1755925885106,0.71,206.38,206.32,40.42]
[1755925885297,16.01522788,206.36,206.26,0.69]
[1755925885503,0.71,206.35,206.3,16.01522788]
[1755925885695,16.01522788,206.33,206.25,26.0]
[1755925885896,0.71,206.32,206.28,16.01522788]
[1755925886095,0.71,206.32,206.29,16.01522788]
[1755925886320,18.50020918,206.42,206.29,16.01522788]
[1755925886321,0.71,206.36,206.31,16.01522788]
[1755925886513,0.71,206.35,206.29,56.41522788]
[1755925886716,0.71,206.35,206.23,0.14216157]
[1755925886717,0.71,206.35,206.28,40.4]
[1755925886907,0.71,206.35,206.29,16.01522788]
[1755925887099,0.71,206.35,206.28,40.4]
[1755925887298,0.71,206.35,206.24,26.0]
[1755925887299,16.01522788,206.33,206.27,16.01522788]
[1755925887514,16.68522788,206.33,206.27,16.01522788]
[1755925888118,16.68522788,206.32,206.25,56.41522788]
[1755925888327,16.01522788,206.26,206.16,0.67]
[1755925888517,16.01522788,206.22,206.16,16.01522788]
[1755925888706,16.68522788,206.22,206.16,16.01522788]
[1755925889229,13.59559401,206.31,206.15,56.41522788]
[1755925889230,0.67,206.21,206.15,56.41522788]
[1755925889523,0.67,206.21,206.14,16.01522788]
[1755925889824,16.01522788,206.2,206.14,16.01522788]
[1755925890125,16.01522788,206.2,206.12,40.43]
[1755925890126,0.67,206.21,206.16,16.01522788]
[1755925890604,4.84797883,206.28,206.13,26.67]
[1755925890605,0.67,206.2,206.14,16.01522788]
[1755925890805,16.68522788,206.2,206.14,15.01522788]
[1755925891007,0.67,206.19,206.12,16.04522788]
[1755925891624,0.67,206.19,206.12,0.03]
[1755925891797,16.01522788,206.17,206.12,0.03]
[1755925891997,0.67,206.16,206.12,0.03]
[1755925892226,16.01522788,206.13,206.12,0.03]
[1755925893027,16.68522788,206.13,206.12,0.03]
[1755925893446,0.67,206.13,206.12,0.03]
[1755925893644,0.67,206.18,206.12,16.04522788]
[1755925893802,0.67,206.18,206.13,16.01522788]
[1755925894204,0.67,206.18,206.14,16.01522788]
[1755925894513,16.01522788,206.2,206.14,16.01522788]
[1755925894712,0.67,206.21,206.16,16.01522788]
[1755925894914,0.67,206.24,206.19,16.01522788]
[1755925895228,0.67,206.24,206.2,16.01522788]
[1755925895439,34.94,206.32,206.22,16.01522788]
[1755925895605,0.67,206.28,206.23,16.01522788]
[1755925895801,16.01522788,206.24,206.14,26.67]
[1755925896000,16.01522788,206.18,206.12,0.03]
[1755925896239,0.67,206.18,206.12,16.04522788]
[1755925896406,16.68522788,206.22,206.16,16.01522788]
[1755925896609,0.67,206.22,206.17,16.01522788]
[1755925896917,0.67,206.21,206.17,16.01522788]
[1755925897110,0.67,206.21,206.19,16.01522788]
[1755925897517,0.67,206.2,206.17,16.01522788]
[1755925898139,0.06,206.28,206.16,16.01522788]
[1755925898308,0.67,206.2,206.18,16.01522788]
[1755925898507,0.67,206.23,206.18,16.01522788]
[1755925898899,0.67,206.22,206.19,16.01522788]
[1755925899103,0.67,206.22,206.18,16.01522788]
[1755925899298,0.67,206.21,206.18,16.01522788]
[1755925899513,0.67,206.21,206.19,16.01522788]
[1755925899730,0.67,206.21,206.18,16.01522788]
[1755925900726,0.67,206.21,206.12,26.03]